{"text_format":"3","workbook":"xlsx","n_sheets":8,"sheets":["Instruksjoner","Rutineregulære","Sporadiske følgere","Potensielle kundeemner","Nettverksplan for 1. kvartal","Nettverksplan for 2. kvartal","Nettverksplan for 3. kvartal","Nettverksplan for 4. kvartal"],"not_rendered":{"defined_names":7},"read":"whole","date_system":"1900"}

{"sheet":"Instruksjoner","index":0,"n_rows":17,"n_cols":5,"rows_kept":17,"merged":[[0,0,0,2],[1,1,1,6],[2,1,2,6],[3,1,3,6],[4,1,4,6],[5,1,5,6],[6,1,6,6],[7,1,7,6],[8,1,8,6],[9,1,9,6],[10,1,10,6],[11,1,11,6]]}
["Kontaktsporing",null,null,"Instruksjoner"]
[null,"1. Bestem hvilken kategori kontakten din faller inn i:"]
[null,"• Rutineregulære – personer du ønsker å holde kontakten med regelmessig"]
[null,"• Sporadiske følgere – personer du vil sjekke inn med et par ganger i året"]
[null,"• Potensielle kundeemner – personer/selskaper du vil beholde i arkivet for å ta kontakt når tiden presenterer seg selv"]
[null,"2. Åpne den tilsvarende regnearkfanen."]
[null,"3. Skriv inn informasjonen deres (for å opprette en ny linje i en celle, trykk Alt + Enter i Windows eller Alternativ + Retur på en Mac)."]
[null,"Se her for nye linjeinstruksjoner for Excel-mobilapper."]
[null,"4. I kolonnen Oppfølgingsdato sletter du eksempeldato/-formel, skriver du inn når du vil kontakte dem, \nog trykk deretter på ENTER."]
[null,"5. Kolonnen oppfølgingsdato viser rødt når datoen er svært nær, gul når den nærmer seg, og \ngrønn når du har god tid."]
[null,"6. Etter hvert som oppfølgingsdatoen nærmer seg, endres fargen tilsvarende."]
[null,"7. Når du har kontaktet kontakten, skriver du inn JA i Ferdig?-kolonnen. Datoen blir nedtonet. "]
[null,"8. Hvis du vil kontakte dem på nytt, erstatter du JA med NEI og skriver inn en ny Oppfølgingsdato."]
[null,null,"Rød","Gul","Grønn"]
[null,"Rutineregulære","1–3 dager unna","4–7 dager unna","Mer enn 8–14 dager unna"]
[null,"Sporadiske følgere","1–7 dager unna","8–45 dager unna","Mer enn 46–90 dager unna"]
[null,"Potensielle kundeemner","1–14 dager unna","15–60 dager unna","Mer enn 60–120 dager unna"]

{"sheet":"Rutineregulære","index":1,"n_rows":7,"n_cols":8,"rows_kept":7,"merged":[[0,0,0,2]]}
["Kontaktsporing",null,null,"Rutineregulære"]
[]
["Navn","Firma","Kontaktinformasjon","Der vi møttes","Notater","Oppfølgingsdato","Ferdig","Notater fra samtalen"]
["Bjarte Høgdal","Adventure Works","Prosjektleder\ngarth@adventure-works.com\n(234) 555-0134\nadventure-works.com\nlinkedin.com/in/garth-fort","Vareshow 2010","Spør om datter Sandy og hvordan ombygging går. Har avsmak for store grupper og sterk mat.",{"$f":"TODAY()+8","v":"2021-07-21"},"NEI"]
["Navn","Firmanavn","Stillingstittel\nE-postadresse\nTelefonnummer\nNettsted\nKoblinger til sosiale profiler\n","Sted","Legg inn eventuelle notater du vil huske om denne personen; der du møttes, hva du snakket om, hva du vil snakke om neste gang, osv.",{"$f":"TODAY()-3","v":"2021-07-10"},"JA"]
["Navn","Firmanavn","Stillingstittel\nE-postadresse\nTelefonnummer\nNettsted\nKoblinger til sosiale profiler\n","Sted","Legg inn eventuelle notater du vil huske om denne personen; der du møttes, hva du snakket om, hva du vil snakke om neste gang, osv.",{"$f":"TODAY()+-3","v":"2021-07-10"},"NEI"]
["Navn","Firmanavn","Stillingstittel\nE-postadresse\nTelefonnummer\nNettsted\nKoblinger til sosiale profiler\n","Sted","Legg inn eventuelle notater du vil huske om denne personen; der du møttes, hva du snakket om, hva du vil snakke om neste gang, osv.",{"$f":"TODAY()+6","v":"2021-07-19"},"NEI"]

{"sheet":"Sporadiske følgere","index":2,"n_rows":7,"n_cols":8,"rows_kept":7,"merged":[[0,0,0,2]]}
["Kontaktsporing",null,null,"Sporadiske følgere"]
[]
["Navn","Firma","Kontaktinformasjon","Der vi møttes","Notater","Oppfølgingsdato","Ferdig","Notater fra samtalen"]
["Bjarte Høgdal","Adventure Works","Ressursadministrasjon\ngarth@adventure-works.com\n(434) 555-0123\nwww.adventure-works.com\nlinkedin.com/in/garth-fort","Ferie i Vermont 2016","Praktisk for både ansettelse av kontakt og markedsføringsspørsmål",{"$f":"TODAY()+90","v":"2021-10-11"},"NEI"]
["Navn","Firmanavn","Stillingstittel\nE-postadresse\nTelefonnummer\nNettsted\nKoblinger til sosiale profiler\n","Sted","Legg inn eventuelle notater du vil huske om denne personen; der du møttes, hva du snakket om, hva du vil snakke om neste gang, osv.",{"$f":"TODAY()-3","v":"2021-07-10"},"JA"]
["Navn","Firmanavn","Stillingstittel\nE-postadresse\nTelefonnummer\nNettsted\nKoblinger til sosiale profiler\n","Sted","Legg inn eventuelle notater du vil huske om denne personen; der du møttes, hva du snakket om, hva du vil snakke om neste gang, osv.",{"$f":"TODAY()+-3","v":"2021-07-10"},"NEI"]
["Navn","Firmanavn","Stillingstittel\nE-postadresse\nTelefonnummer\nNettsted\nKoblinger til sosiale profiler\n","Sted","Legg inn eventuelle notater du vil huske om denne personen; der du møttes, hva du snakket om, hva du vil snakke om neste gang, osv.",{"$f":"TODAY()+40","v":"2021-08-22"},"NEI"]

{"sheet":"Potensielle kundeemner","index":3,"n_rows":7,"n_cols":8,"rows_kept":7,"merged":[[0,0,0,2]]}
["Kontaktsporing",null,null,"Potensielle kundeemner"]
[]
["Navn","Firma","Kontaktinformasjon","Der vi møttes","Notater","Oppfølgingsdato","Ferdig","Notater fra samtalen"]
["Bjarte Høgdal","Frilanser","Designer\nnoen@eksempel.com\n425-555-0123\nexample.com\nlinkedin.com/in/garth-fort","Sønns avgangseksamen 2016","Nylig karakter – svært erfaren. Kan være nyttig for fremtidige kunder.",{"$f":"TODAY()+89","v":"2021-10-10"},"NEI"]
["Navn","Firmanavn","Stillingstittel\nE-postadresse\nTelefonnummer\nNettsted\nKoblinger til sosiale profiler\n","Sted","Legg inn eventuelle notater du vil huske om denne personen; der du møttes, hva du snakket om, hva du vil snakke om neste gang, osv.",{"$f":"TODAY()-3","v":"2021-07-10"},"JA"]
["Navn","Firmanavn","Stillingstittel\nE-postadresse\nTelefonnummer\nNettsted\nKoblinger til sosiale profiler\n","Sted","Legg inn eventuelle notater du vil huske om denne personen; der du møttes, hva du snakket om, hva du vil snakke om neste gang, osv.",{"$f":"TODAY()+-3","v":"2021-07-10"},"NEI"]
["Navn","Firmanavn","Stillingstittel\nE-postadresse\nTelefonnummer\nNettsted\nKoblinger til sosiale profiler\n","Sted","Legg inn eventuelle notater du vil huske om denne personen; der du møttes, hva du snakket om, hva du vil snakke om neste gang, osv.",{"$f":"TODAY()+30","v":"2021-08-12"},"NEI"]

{"sheet":"Nettverksplan for 1. kvartal","index":4,"n_rows":20,"n_cols":6,"rows_kept":20,"merged":[[0,0,0,3],[2,0,2,3],[4,0,4,3],[14,5,17,5],[18,0,18,3]]}
["Nettverksutvidelsesplan"]
["Instruksjoner"]
["Skriv ut hvordan du planlegger å utvide nettverket dette kvartalet (dvs. foreta flere telefonsamtaler, reise mer osv.). Hver gang du får en ny kontakt, kan du deretter endre det faktiske antallet opprettede kontakter for å holde oversikten og se hvor nært du kommer til målet."]
[]
["Slik planlegger jeg å utvide nettverket mitt dette kvartalet"]
["1. Foreta flere telefonsamtaler"]
["2. Reise mer"]
[]
[]
[]
[]
[]
[]
["Kvartalsvis kontaktmål","Tidsfrist","Faktiske kvartalsvise kontakter er opprettet","Resultater"]
[20,{"$f":"TODAY()","v":"2021-07-13"},12,{"$f":"IF(tblGoals[[#This Row],[Kvartalsvis kontaktmål]]>0,tblGoals[[#This Row],[Faktiske kvartalsvise kontakter er opprettet]]/tblGoals[[#This Row],[Kvartalsvis kontaktmål]],\"\")","v":{"v":0.6,"d":"60%"}},null,"0% - 25%\n26% - 50%\n51% - 75%\n76% - 100%\n\nFargeendringer basert på prosent nådd"]
[{"$nulls":3},{"$f":"IF(tblGoals[[#This Row],[Kvartalsvis kontaktmål]]>0,tblGoals[[#This Row],[Faktiske kvartalsvise kontakter er opprettet]]/tblGoals[[#This Row],[Kvartalsvis kontaktmål]],\"\")","v":""}]
[{"$nulls":3},{"$f":"IF(tblGoals[[#This Row],[Kvartalsvis kontaktmål]]>0,tblGoals[[#This Row],[Faktiske kvartalsvise kontakter er opprettet]]/tblGoals[[#This Row],[Kvartalsvis kontaktmål]],\"\")","v":""}]
[]
["Gjenspeiling på resultat / merknader for forbedring"]
["Nesten der. Prøv å ringe rundt i stedet."]

{"sheet":"Nettverksplan for 2. kvartal","index":5,"n_rows":20,"n_cols":6,"rows_kept":20,"merged":[[0,0,0,3],[2,0,2,3],[4,0,4,3],[14,5,17,5],[18,0,18,3]]}
["Nettverksutvidelsesplan"]
["Instruksjoner"]
["Skriv ut hvordan du planlegger å utvide nettverket dette kvartalet (dvs. foreta flere telefonsamtaler, reise mer osv.). Hver gang du får en ny kontakt, kan du deretter endre det faktiske antallet opprettede kontakter for å holde oversikten og se hvor nært du kommer til målet."]
[]
["Slik planlegger jeg å utvide nettverket mitt dette kvartalet"]
["1. Foreta flere telefonsamtaler"]
["2. Reise mer"]
[]
[]
[]
[]
[]
[]
["Kvartalsvis kontaktmål","Tidsfrist","Faktiske kvartalsvise kontakter er opprettet","Resultater"]
[20,{"$f":"TODAY()","v":"2021-07-13"},12,{"$f":"IF(tblGoals3[[#This Row],[Kvartalsvis kontaktmål]]>0,tblGoals3[[#This Row],[Faktiske kvartalsvise kontakter er opprettet]]/tblGoals3[[#This Row],[Kvartalsvis kontaktmål]],\"\")","v":{"v":0.6,"d":"60%"}},null,"0% - 25%\n26% - 50%\n51% - 75%\n76% - 100%\n\nFargeendringer basert på prosent nådd"]
[{"$nulls":3},{"$f":"IF(tblGoals3[[#This Row],[Kvartalsvis kontaktmål]]>0,tblGoals3[[#This Row],[Faktiske kvartalsvise kontakter er opprettet]]/tblGoals3[[#This Row],[Kvartalsvis kontaktmål]],\"\")","v":""}]
[{"$nulls":3},{"$f":"IF(tblGoals3[[#This Row],[Kvartalsvis kontaktmål]]>0,tblGoals3[[#This Row],[Faktiske kvartalsvise kontakter er opprettet]]/tblGoals3[[#This Row],[Kvartalsvis kontaktmål]],\"\")","v":""}]
[]
["Gjenspeiling på resultat / merknader for forbedring"]
["Nesten der. Prøv å ringe rundt i stedet."]

{"sheet":"Nettverksplan for 3. kvartal","index":6,"n_rows":20,"n_cols":6,"rows_kept":20,"merged":[[0,0,0,3],[2,0,2,3],[4,0,4,3],[14,5,17,5],[18,0,18,3]]}
["Nettverksutvidelsesplan"]
["Instruksjoner"]
["Skriv ut hvordan du planlegger å utvide nettverket dette kvartalet (dvs. foreta flere telefonsamtaler, reise mer osv.). Hver gang du får en ny kontakt, kan du deretter endre det faktiske antallet opprettede kontakter for å holde oversikten og se hvor nært du kommer til målet."]
[]
["Slik planlegger jeg å utvide nettverket mitt dette kvartalet"]
["1. Foreta flere telefonsamtaler"]
["2. Reise mer"]
[]
[]
[]
[]
[]
[]
["Kvartalsvis kontaktmål","Tidsfrist","Faktiske kvartalsvise kontakter er opprettet","Resultater"]
[20,{"$f":"TODAY()","v":"2021-07-13"},12,{"$f":"IF(tblGoals34[[#This Row],[Kvartalsvis kontaktmål]]>0,tblGoals34[[#This Row],[Faktiske kvartalsvise kontakter er opprettet]]/tblGoals34[[#This Row],[Kvartalsvis kontaktmål]],\"\")","v":{"v":0.6,"d":"60%"}},null,"0% - 25%\n26% - 50%\n51% - 75%\n76% - 100%\n\nFargeendringer basert på prosent nådd"]
[{"$nulls":3},{"$f":"IF(tblGoals34[[#This Row],[Kvartalsvis kontaktmål]]>0,tblGoals34[[#This Row],[Faktiske kvartalsvise kontakter er opprettet]]/tblGoals34[[#This Row],[Kvartalsvis kontaktmål]],\"\")","v":""}]
[{"$nulls":3},{"$f":"IF(tblGoals34[[#This Row],[Kvartalsvis kontaktmål]]>0,tblGoals34[[#This Row],[Faktiske kvartalsvise kontakter er opprettet]]/tblGoals34[[#This Row],[Kvartalsvis kontaktmål]],\"\")","v":""}]
[]
["Gjenspeiling på resultat / merknader for forbedring"]
["Nesten der. Prøv å ringe rundt i stedet."]

{"sheet":"Nettverksplan for 4. kvartal","index":7,"n_rows":20,"n_cols":6,"rows_kept":20,"merged":[[0,0,0,3],[2,0,2,3],[4,0,4,3],[14,5,17,5],[18,0,18,3]]}
["Nettverksutvidelsesplan"]
["Instruksjoner"]
["Skriv ut hvordan du planlegger å utvide nettverket dette kvartalet (dvs. foreta flere telefonsamtaler, reise mer osv.). Hver gang du får en ny kontakt, kan du deretter endre det faktiske antallet opprettede kontakter for å holde oversikten og se hvor nært du kommer til målet."]
[]
["Slik planlegger jeg å utvide nettverket mitt dette kvartalet"]
["1. Foreta flere telefonsamtaler"]
["2. Reise mer"]
[]
[]
[]
[]
[]
[]
["Kvartalsvis kontaktmål","Tidsfrist","Faktiske kvartalsvise kontakter er opprettet","Resultater"]
[20,{"$f":"TODAY()","v":"2021-07-13"},12,{"$f":"IF(tblGoals348[[#This Row],[Kvartalsvis kontaktmål]]>0,tblGoals348[[#This Row],[Faktiske kvartalsvise kontakter er opprettet]]/tblGoals348[[#This Row],[Kvartalsvis kontaktmål]],\"\")","v":{"v":0.6,"d":"60%"}},null,"0% - 25%\n26% - 50%\n51% - 75%\n76% - 100%\n\nFargeendringer basert på prosent nådd"]
[{"$nulls":3},{"$f":"IF(tblGoals348[[#This Row],[Kvartalsvis kontaktmål]]>0,tblGoals348[[#This Row],[Faktiske kvartalsvise kontakter er opprettet]]/tblGoals348[[#This Row],[Kvartalsvis kontaktmål]],\"\")","v":""}]
[{"$nulls":3},{"$f":"IF(tblGoals348[[#This Row],[Kvartalsvis kontaktmål]]>0,tblGoals348[[#This Row],[Faktiske kvartalsvise kontakter er opprettet]]/tblGoals348[[#This Row],[Kvartalsvis kontaktmål]],\"\")","v":""}]
[]
["Gjenspeiling på resultat / merknader for forbedring"]
["Nesten der. Prøv å ringe rundt i stedet."]